fUST/lending_fUST_20240809
["ID","MTS","AMOUNT","RATE_DAILY","PERIOD"]
[334542808,1723181439590,-30210.5369158,0.00023551,3]
[334542809,1723181439601,-2000.0,0.00023561,2]
[334542810,1723181439610,-1285.11282224,0.00023561,2]
[334542811,1723181439620,-1152.0,0.00023566,2]
[334542812,1723181439630,-154.77557542,0.00023572,2]
[334542813,1723181439641,-10819.72649963,0.00023573,2]
[334542814,1723181439650,-150.112239,0.000236,5]
[334542815,1723181439660,-620.00267534,0.00023814,2]
[334542816,1723181439670,-399.79147766,0.00023987,2]
[334542817,1723181439680,-500.0,0.00023987,2]
[334542818,1723181439691,-500.0,0.00023987,2]
[334542819,1723181439701,-500.0,0.00023987,2]
[334542820,1723181439711,-500.0,0.00023987,2]
[334542821,1723181439721,-500.0,0.00023987,2]
[334542822,1723181439731,-500.0,0.00023987,2]
[334542823,1723181439741,-500.0,0.00023987,2]
[334542824,1723181439751,-500.0,0.00023987,2]
[334542825,1723181439762,-500.0,0.00023987,2]
[334542826,1723181439774,-500.0,0.00023987,2]
[334542827,1723181439785,-500.0,0.00023987,2]
[334542828,1723181439795,-500.0,0.00023987,2]
[334542829,1723181439804,-500.0,0.00023987,2]
[334542830,1723181439814,-500.0,0.00023987,2]
[334542831,1723181439825,-500.0,0.00023987,2]
[334542832,1723181439835,-369.44677849,0.00023987,2]
[334542834,1723181439845,-500.0,0.00023987,2]
[334542836,1723181439857,-500.0,0.00023987,2]
[334542837,1723181439868,-500.0,0.00023987,2]
[334542838,1723181439879,-500.0,0.00023987,2]
[334542839,1723181439890,-500.0,0.00023987,2]
[334542840,1723181439902,-500.0,0.00023987,2]
[334542841,1723181439912,-500.0,0.00023987,2]
[334542842,1723181439924,-500.0,0.00023987,2]
[334542843,1723181439935,-500.0,0.00023987,2]
[334542844,1723181439946,-500.0,0.00023987,2]
[334542845,1723181439955,-30210.5369158,0.00023989,3]
[334542846,1723181439964,-60421.0738316,0.0002399,3]
[334542847,1723181439974,-4351.71715984,0.00024,30]
[334542848,1723181439983,-2754.0,0.00024,2]
[334542849,1723181439992,-84634.60156744,0.00024,3]
[334542850,1723181440001,-318.55212607,0.00024,2]
[334542851,1723181440011,-645.64533055,0.00024108,2]
[334542852,1723181440020,-645.64533055,0.00024108,2]
[334542853,1723181440029,-620.00000669,0.00024112,2]
[334542855,1723181440038,-288.0,0.00024164,2]
[334542856,1723181440048,-150.112233,0.000242,2]
[334542857,1723181440058,-188.95,0.000244,7]
[334542858,1723181440067,-160.0,0.00024458,3]
[334542859,1723181440077,-2605.33705453,0.000245,2]
[334542860,1723181440087,-160.0,0.0002484,4]
[334542861,1723181440097,-41521.8528351,0.00024868,2]
[334542862,1723181440106,-150.112233,0.000249,3]
[334542863,1723181440116,-200.0,0.00024973,2]
[334542864,1723181440125,-200.0,0.00024973,2]
[334542865,1723181440135,-30210.5369158,0.0002499,3]
[334542866,1723181440145,-500.0,0.00025,2]
[334542867,1723181440155,-154.79103211,0.00025,2]
[334542868,1723181440164,-402.66527594,0.00025,2]
[334542869,1723181440175,-23205.7965051,0.00025,30]
[334542870,1723181440185,-189.68346517,0.00025,2]
[334542871,1723181440195,-5489.93,0.00025,14]
[334542872,1723181440207,-485.93,0.00025,14]
[334542873,1723181440217,-154.94074895,0.00025,2]
[334542875,1723181440227,-154.95445241,0.00025,2]
[334542876,1723181440237,-247609.56376808,0.00025,2]
[334542877,1723181440246,-151.0,0.00025,7]
[334542878,1723181440255,-189.472152,0.00025,7]
[334542879,1723181440266,-189.472152,0.00025,7]
[334542880,1723181440275,-1855.91386169,0.00025,2]
[334542881,1723181440286,-151.0,0.00025,7]
[334542882,1723181440295,-1027.99983711,0.00025,2]
[334542883,1723181440305,-151.0,0.00025,7]
[334542884,1723181440315,-40763.26340784,0.00025,2]
[334542885,1723181440326,-607.355144,0.00025,7]
[334542886,1723181440336,-607.355144,0.00025,7]
[334542887,1723181440348,-151.0,0.00025,7]
[334542888,1723181440359,-151.0,0.00025,2]
[334542889,1723181440368,-151.0,0.00025,2]
[334542890,1723181440378,-151.0,0.00025,7]
[334542891,1723181440389,-151.821473,0.00025,7]
[334542892,1723181440399,-151.0,0.00025,7]
[334542893,1723181440408,-151.0,0.00025,7]
[334542894,1723181440418,-1087.889495,0.00025,7]
[334542895,1723181440428,-1087.889495,0.00025,7]
[334542896,1723181440437,-1087.889495,0.00025,7]
[334542897,1723181440447,-1087.889495,0.00025,7]
[334542898,1723181440458,-151.0,0.00025,7]
[334542899,1723181440467,-151.0,0.00025,7]
[334542900,1723181440478,-151.0,0.00025,7]
[334542901,1723181440488,-151.550525,0.00025,7]
[334542902,1723181440498,-640.612167,0.00025,7]
[334542903,1723181440507,-640.612167,0.00025,7]
[334542904,1723181440517,-640.612167,0.00025,7]
[334542905,1723181440527,-640.612167,0.00025,7]
[334542906,1723181440536,-726.988644,0.00025,7]
[334542907,1723181440545,-726.988644,0.00025,7]
[334542908,1723181440555,-620.00013377,0.00025005,2]
[334542909,1723181440565,-160.0,0.00025222,5]
[334542910,1723181440575,-620.00000033,0.00025317,2]
[334542911,1723181440584,-16588.72621919,0.0002538,10]
[334542912,1723181440594,-151.0,0.00025463,3]
[334542913,1723181440604,-900.0,0.00025469,3]
[334542914,1723181440613,-2080.77205396,0.0002553,2]
[334542915,1723181440623,-3000.0,0.000256,2]
[334542916,1723181440633,-160.0,0.00025603,6]
[334542917,1723181440643,-3000.0,0.0002561,2]
[334542918,1723181440652,-3000.0,0.0002562,2]
[334542919,1723181440662,-3000.0,0.0002563,2]
[334542920,1723181440671,-3000.0,0.0002564,2]
[334542921,1723181440681,-3000.0,0.0002565,2]
[334542922,1723181440693,-3000.0,0.0002566,2]
[334542923,1723181440704,-3000.0,0.0002567,2]
[334542924,1723181440714,-3000.0,0.0002568,2]
[334542926,1723181440724,-3000.0,0.0002569,2]
[334542928,1723181440734,-3000.0,0.000257,2]
[334542929,1723181440745,-3000.0,0.0002571,2]
[334542930,1723181440754,-154.227697,0.0002571,7]
[334542931,1723181440766,-1087.889495,0.0002571,7]
[334542932,1723181440777,-1087.889495,0.0002571,7]
[334542933,1723181440818,-151.0,0.0002571,7]
[334542934,1723181440828,-640.612167,0.0002571,7]
[334542935,1723181440838,-640.612167,0.0002571,7]
[334542936,1723181440848,-3000.0,0.0002572,2]
[334542937,1723181440858,-3000.0,0.0002573,2]
[334542938,1723181440867,-3000.0,0.0002574,2]
[334542939,1723181440877,-3000.0,0.0002575,2]
[334542940,1723181440888,-3000.0,0.0002576,2]
[334542941,1723181440897,-3000.0,0.0002577,2]
[334542942,1723181440907,-284.0,0.00025775,2]
[334542943,1723181440916,-3000.0,0.0002578,2]
[334542944,1723181440926,-3000.0,0.0002579,2]
[334542945,1723181440935,-150.112233,0.000258,5]
[334542946,1723181440945,-3000.0,0.000258,2]
[334542947,1723181440955,-3000.0,0.0002581,2]
[334542948,1723181440964,-7479.13746495,0.00025812,2]
[334542949,1723181440974,-3000.0,0.0002582,2]
[334542950,1723181440983,-3000.0,0.0002583,2]
[334542951,1723181440993,-3000.0,0.0002584,2]
[334542952,1723181441002,-3000.0,0.0002585,2]
[334542953,1723181441012,-3000.0,0.0002586,2]
[334542954,1723181441022,-3000.0,0.0002587,2]
[334542955,1723181441032,-1541.183,0.00025871,2]
[334542956,1723181441042,-150.702,0.00025871,2]
[334542957,1723181441052,-3000.0,0.0002588,2]
[334542958,1723181441061,-3000.0,0.0002589,2]
[334542959,1723181441071,-3000.0,0.000259,2]
[334542960,1723181441081,-3000.0,0.0002591,2]
[334542961,1723181441092,-3000.0,0.0002592,2]
[334542962,1723181441102,-1613.0,0.00025923,2]
[334542963,1723181441112,-3000.0,0.0002593,2]
[334542964,1723181441122,-3000.0,0.0002594,2]
[334542965,1723181441132,-3000.0,0.0002595,2]
[334542966,1723181441142,-726.988644,0.0002595,7]
[334542967,1723181441151,-726.988644,0.0002595,7]
[334542968,1723181441161,-3000.0,0.0002596,2]
[334542969,1723181441171,-3000.0,0.0002597,2]
[334542970,1723181441180,-581.334084,0.0002597,7]
[334542971,1723181441190,-581.334084,0.0002597,7]
[334542972,1723181441199,-160.886104,0.0002597,7]
[334542973,1723181441208,-160.886104,0.0002597,7]
[334542974,1723181441218,-1417.882806,0.0002597,7]
[334542975,1723181441227,-1417.882806,0.0002597,7]
[334542976,1723181441237,-525.828866,0.0002597,7]
[334542977,1723181441246,-525.828866,0.0002597,7]
[334542978,1723181441256,-151.0,0.0002597,7]
[334542979,1723181441265,-189.472152,0.0002597,7]
[334542980,1723181441274,-189.472152,0.0002597,7]
[334542981,1723181441283,-151.0,0.0002597,7]
[334542982,1723181441292,-151.0,0.0002597,7]
[334542983,1723181441302,-607.355144,0.0002597,7]
[334542984,1723181441311,-607.355144,0.0002597,7]
[334542985,1723181441322,-151.0,0.0002597,7]
[334542986,1723181441331,-151.0,0.0002597,2]
[334542987,1723181441341,-151.0,0.0002597,2]
[334542988,1723181441350,-3000.0,0.0002598,2]
[334542989,1723181441360,-160.0,0.00025985,7]
[334542990,1723181441369,-3000.0,0.0002599,2]
[334542991,1723181441379,-7732.0,0.00026,3]
[334542992,1723181441389,-3461.249803,0.00026,2]
[334542993,1723181441399,-151.0,0.00026,7]
[334542994,1723181441408,-151.0,0.00026,7]
[334542995,1723181441417,-151.0,0.00026,7]
[334542996,1723181441426,-151.0,0.00026027,7]
[334542997,1723181441438,-290.519129,0.00026027,7]
[334542998,1723181441449,-290.519129,0.00026027,7]
[334542999,1723181441461,-263.368071,0.00026027,2]
[334543000,1723181441471,-151.0,0.00026027,7]
[334543001,1723181441480,-151.0,0.00026027,7]
[334543002,1723181441490,-163.905472,0.00026027,7]
[334543003,1723181441499,-151.0,0.00026027,7]
[334543004,1723181441509,-2799.92,0.00026027,5]
[334543005,1723181441518,-2799.92,0.00026027,5]
[334543006,1723181441527,-851.75247116,0.00026027,5]
[334543007,1723181441696,-2140.4177363,0.00019167,2]
[334543008,1723181441706,-193.00206218,0.00021532,2]
[334543009,1723181441715,-229.4013,0.00025,7]
[334543010,1723181441725,-1948.16752884,0.00026027,5]
[334543011,1723181441734,-1209.01137268,0.00026027,5]
[334543012,1723181441747,-1590.90862732,0.00026027,5]
[334543013,1723181441756,-2799.92,0.00026027,5]
[334543014,1723181441766,-2799.92,0.00026027,5]
[334543015,1723181441776,-2799.92,0.00026027,5]
[334543016,1723181441785,-2799.92,0.00026027,5]
[334543017,1723181441796,-2799.92,0.00026027,5]
[334543018,1723181441805,-2799.92,0.00026027,5]
[334543019,1723181441815,-2799.92,0.00026027,5]
[334543020,1723181441824,-1724.33610569,0.00026027,5]
[334543021,1723181441836,-1075.58389431,0.00026027,5]
[334543022,1723181441845,-2799.92,0.00026027,5]
[334543023,1723181441855,-2799.92,0.00026027,5]
[334543024,1723181441865,-2799.92,0.00026027,5]
[334543025,1723181441875,-2799.92,0.00026027,5]
[334543026,1723181441885,-2799.92,0.00026027,5]
[334543027,1723181441897,-2799.92,0.00026027,5]
[334543028,1723181441909,-2799.92,0.00026027,5]
[334543029,1723181441918,-500.0,0.00026027,2]
[334543030,1723181441927,-500.0,0.00026027,2]
[334543031,1723181441942,-500.0,0.00026027,2]
[334543032,1723181441951,-500.0,0.00026027,2]
[334543033,1723181441961,-570.87343678,0.00026027,2]
[334543034,1723181441970,-500.0,0.00026027,2]
[334543035,1723181441979,-500.0,0.00026027,2]
[334543036,1723181441989,-500.0,0.00026027,2]
[334543037,1723181441998,-500.0,0.00026027,2]
[334543038,1723181442007,-500.0,0.00026027,2]
[334543039,1723181442016,-500.0,0.00026027,2]
[334543040,1723181442025,-500.0,0.00026027,2]
[334543041,1723181442034,-500.0,0.00026027,2]
[334543042,1723181442043,-500.0,0.00026027,2]
[334543043,1723181442052,-500.0,0.00026027,2]
[334543044,1723181442061,-200.0,0.00026027,2]
[334543045,1723181442070,-151.0,0.00026096,3]
[334543046,1723181442079,-882.14952086,0.00026149,2]
[334543047,1723181442088,-150.112233,0.000262,9]
[334543048,1723181442097,-620.00000669,0.00026255,2]
[334543049,1723181442106,-303.8798826,0.00026342,2]
[334543050,1723181442117,-400.0,0.00026342,2]
[334543051,1723181442127,-160.0,0.00026367,8]
[334543052,1723181442141,-7458.94652043,0.0002649,2]
[334543053,1723181442152,-25477.18573652,0.0002654,2]
[334543054,1723181442162,-25477.18573652,0.0002654,3]
[334543055,1723181442171,-7292.13180912,0.0002654,4]
[334543056,1723181442182,-157.895547,0.00026549,2]
[334543057,1723181442192,-160.575813,0.00026549,2]
[334543058,1723181442203,-220.780168,0.00026549,2]
[334543059,1723181442212,-153.0,0.00026575,2]
[334543060,1723181442221,-204.5699775,0.00026575,2]
[334543061,1723181442234,-306.0,0.00026575,2]
[334543062,1723181442245,-207.2250634,0.00026575,2]
[334543063,1723181442258,-267.8162636,0.00026575,2]
[334543064,1723181442267,-267.8162636,0.00026575,2]
[334543065,1723181442278,-153.0,0.00026575,2]
[334543066,1723181442289,-207.2250634,0.00026575,2]
[334543067,1723181442299,-153.0,0.00026575,2]
[334543068,1723181442307,-267.8162636,0.00026575,2]
[334543069,1723181442318,-207.2250634,0.00026575,2]
[334543070,1723181442328,-153.0,0.00026575,2]
[334543071,1723181442339,-153.0,0.00026575,2]
[334543072,1723181442350,-267.8162636,0.00026575,2]
[334543073,1723181442360,-207.2250634,0.00026575,2]
[334543074,1723181442371,-153.0,0.00026575,2]
[334543075,1723181442380,-207.2250634,0.00026575,2]
[334543077,1723181442392,-153.0,0.00026575,2]
[334543079,1723181442401,-267.8162636,0.00026575,2]
[334543080,1723181442412,-153.0,0.00026575,2]
[334543082,1723181442422,-153.0,0.00026575,2]
[334543084,1723181442431,-206.7741929,0.00026575,2]
[334543087,1723181442441,-472.16409374,0.00026583,2]
[334543090,1723181442451,-188.95,0.000267,7]
[334543094,1723181442460,-151.0,0.00026729,4]
[334543097,1723181442470,-160.0,0.00026749,9]
[334543098,1723181442479,-160.575813,0.00026881,2]
[334543099,1723181442488,-220.780168,0.00026881,2]
[334543100,1723181442498,-2799.92,0.00026999,5]
[334543101,1723181442507,-2799.92,0.00026999,5]
[334543102,1723181442516,-2799.92,0.00026999,5]
[334543103,1723181442525,-2799.92,0.00026999,5]
[334543104,1723181442535,-2799.96411178,0.00026999,5]
[334543106,1723181442544,-1087.889495,0.00026999,7]
[334543107,1723181442553,-1087.889495,0.00026999,7]
[334543109,1723181442562,-151.0,0.00026999,7]
[334543110,1723181442571,-640.612167,0.00026999,7]
[334543111,1723181442580,-640.612167,0.00026999,7]
[334543113,1723181442590,-183.09226722,0.00027,2]
[334543115,1723181442599,-4992.78014801,0.00027,2]
[334543117,1723181442608,-407.55933945,0.00027,7]
[334543119,1723181442617,-11529.9338699,0.00027,4]
[334543121,1723181443046,-601.1945502,0.00015751,2]
[334543122,1723181443058,-16459.48653234,0.00019547,2]
[334543123,1723181443245,-34.12977198,0.00019547,2]
[334543124,1723181443331,-4278.00639049,0.00019547,2]
[334543125,1723181443342,-153.0,0.000224,2]
[334543126,1723181443351,-153.0,0.000224,2]
[334543127,1723181443361,-507.48,0.00025871,2]
[334543128,1723181443371,-1274.70687044,0.00027,4]
[334543129,1723181443381,-33907.6132045,0.00027,7]
[334543130,1723181443392,-4004.81,0.00027,2]
[334543132,1723181443402,-1000.0,0.000271,2]
[334543133,1723181443411,-160.0,0.00027131,10]
[334543134,1723181443421,-164.76527864,0.00027131,5]
[334543135,1723181443430,-160.575813,0.00027213,2]
[334543136,1723181443440,-220.780168,0.00027213,2]
[334543137,1723181443451,-151.0,0.00027244,7]
[334543138,1723181443460,-151.0,0.00027244,7]
[334543139,1723181443470,-2000.0,0.00027297,2]
[334543140,1723181443480,-151.0,0.000273,7]
[334543141,1723181443490,-151.0,0.000273,7]
[334543142,1723181443499,-604.665207,0.000273,7]
[334543143,1723181443510,-604.665207,0.000273,7]
[334543144,1723181443519,-905.375872,0.000273,7]
[334543145,1723181443529,-905.375872,0.000273,7]
[334543146,1723181443540,-525.061185,0.000273,7]
[334543147,1723181443552,-525.061185,0.000273,7]
[334543148,1723181443563,-154.693268,0.000273,7]
[334543149,1723181443573,-151.0,0.000273,7]
[334543150,1723181443583,-151.0,0.000273,7]
[334543151,1723181443594,-151.0,0.000273,7]
[334543152,1723181443604,-151.0,0.000273,7]
[334543153,1723181443614,-151.0,0.000273,7]
[334543154,1723181443623,-726.988644,0.000273,7]
[334543155,1723181443633,-726.988644,0.000273,7]
[334543156,1723181443643,-9037.60265148,0.000273,2]
[334543157,1723181443653,-13009.76829389,0.000273,2]
[334543158,1723181443663,-1000.0,0.0002734,2]
[334543159,1723181443672,-151.0,0.00027362,4]
[334543160,1723181443683,-151.0,0.00027362,4]
[334543161,1723181443696,-200.0,0.00027373,2]
[334543162,1723181443707,-200.0,0.00027373,2]
[334543163,1723181443717,-284.0,0.00027386,2]
[334543164,1723181443728,-305.70460199,0.0002739,2]
[334543165,1723181443738,-151.0,0.00027396,7]
[334543166,1723181443747,-151.0,0.00027396,7]
[334543167,1723181443758,-151.0,0.00027396,7]
[334543168,1723181443770,-1106.58009461,0.00027396,4]
[334543182,1723181446264,-300.137,0.0002142,2]
[334543183,1723181463924,273.37336231,9.9e-05,2]
[334543184,1723181480037,273.37336231,9.9e-05,2]
[334543187,1723181535746,184.2285852,0.00012,2]
[334543188,1723181547802,522.63402036,0.00012,2]
[334543189,1723181548597,304.190946,9.9e-05,2]
[334543190,1723181568499,20771.62269481,0.00012,2]
[334543191,1723181592590,388.45677896,0.00012,2]
[334543193,1723181601769,222.6773594,0.00012,2]
[334543195,1723181621236,20771.62269481,0.00012,2]
[334543196,1723181624880,519.77563875,0.00015,2]
[334543197,1723181650578,837.37473884,0.00012,2]
[334543199,1723181655024,182.75924704,0.00014545,2]
[334543200,1723181673502,20771.62269481,0.00014545,2]
[334543201,1723181704060,173.43065437,0.00014545,2]
[334543202,1723181807480,160.009693,0.00014247,2]
[334543212,1723182054527,24900.0,0.00014888,2]
[334543213,1723182147334,1000.0,0.00027,120]
[334543214,1723182156508,1000.0,0.00025,60]
[334543217,1723182215476,238.665543,0.00014817,2]
[334543218,1723182228093,250.0,0.00015,2]
[334543219,1723182285863,781.59557702,0.00015,2]
[334543220,1723182317402,199.05248891,0.00015,2]
[334543221,1723182330980,184.445086,0.00014247,2]
[334543223,1723182401879,618.40442298,0.00014247,2]
[334543224,1723182470672,3608.33001858,0.00014247,2]
[334543231,1723182566175,-250.0,0.00015041,2]
[334543232,1723182566198,-250.0,0.00015082,2]
[334543233,1723182566220,-3000.0,0.00015115,2]
[334543234,1723182566242,-213.72326136,0.00015123,2]
[334543235,1723182572616,183.21593301,9.999e-05,2]
[334543236,1723182580748,265.44123749,9.9e-05,2]
[334543237,1723182596340,273.37336231,9.9e-05,2]
[334543239,1723182612916,225.75348869,9.9e-05,2]
[334543240,1723182622442,24900.0,0.00014509,2]
[334543241,1723182624541,2582.5238346,0.00014509,2]
[334543245,1723182628889,273.37336231,9.9e-05,2]
[334543286,1723182636219,304.190946,0.00012,2]
[334543304,1723182638490,-36.27673864,0.00015123,2]
[334543306,1723182638501,-250.0,0.00015164,2]
[334543308,1723182638511,-250.0,0.00015205,2]
[334543310,1723182638520,-250.0,0.00015247,2]
[334543312,1723182638530,-250.0,0.00015288,2]
[334543314,1723182638539,-250.0,0.00015329,2]
[334543316,1723182638549,-250.0,0.0001537,2]
[334543318,1723182638558,-143.72326107,0.00015411,2]
[334543492,1723182641139,-106.27673893,0.00015411,2]
[334543493,1723182641155,-250.0,0.00015452,2]
[334543494,1723182641169,-250.0,0.00015494,2]
[334543495,1723182641182,-250.0,0.00015535,2]
[334543496,1723182641195,-250.0,0.00015576,2]
[334543497,1723182641205,-250.0,0.00015617,2]
[334543498,1723182641216,-4120.73495682,0.00015641,2]
[334543500,1723182641229,-250.0,0.00015658,2]
[334543503,1723182641242,-250.0,0.00015699,2]
[334543505,1723182641255,-300.0,0.00015707,2]
[334543507,1723182641268,-9114.71769999,0.00015708,2]
[334543510,1723182641281,-8834.48131506,0.00015708,2]
[334543512,1723182641295,-2123.85805989,0.00015708,2]
[334543514,1723182641309,-2140.4177363,0.00015708,2]
[334543517,1723182641323,-17895.50968471,0.0001571,2]
[334543518,1723182641337,-250.0,0.0001574,2]
[334543519,1723182641349,-250.38146921,0.00015746,2]
[334543520,1723182641362,-250.0,0.00015782,2]
[334543521,1723182641375,-180.51285937,0.00015851,2]
[334543522,1723182641387,-403.74175046,0.00015952,2]
[334543523,1723182641400,-1394.37542323,0.00016309,2]
[334543524,1723182641412,-285.08017488,0.00016309,2]
[334543525,1723182641425,-1131.26872049,0.00016309,2]
[334543526,1723182641437,-205.20449904,0.00016532,2]
[334543527,1723182641450,-269.95291788,0.00017,2]
[334543528,1723182641464,-183.21593301,0.00017269,2]
[334543529,1723182641475,-420.0,0.00017278,2]
[334543530,1723182641485,-4120.73495679,0.00018206,2]
[334543531,1723182641497,-727.95598898,0.00018845,2]
[334543532,1723182641510,-413.18177562,0.00018921,2]
[334543533,1723182641520,-400.0,0.00018978,2]
[334543534,1723182641534,-42366.16356883,0.00018979,2]
[334543535,1723182641546,-38264.00801584,0.00018989,2]
[334543536,1723182641561,-725.55563844,0.00018989,2]
[334543537,1723182641575,-1545.62719992,0.00018989,2]
[334543538,1723182641590,-965.7236003,0.00018989,2]
[334543539,1723182641603,-541.08889795,0.00019,2]
[334543540,1723182641615,-587.0,0.00019005,2]
[334543541,1723182641629,-1644.13770192,0.00019139,7]
[334543542,1723182641641,-277.26634811,0.00019167,2]
[334543543,1723182641652,-929.97299986,0.00019167,2]
[334543544,1723182641892,1652.49101254,9.9e-05,2]
[334543556,1723182645406,273.37336231,9.9e-05,2]
[334543582,1723182646378,-1162.86940617,0.00019155,2]
[334543583,1723182646388,-16.17421836,0.00019167,2]
[334543584,1723182648897,155.30339985,0.00012,2]
[334543585,1723182660934,273.37336231,9.9e-05,2]
[334543586,1723182677991,912.76636685,0.00015,2]
[334543587,1723182678503,251.34983385,0.00012,2]
[334543588,1723182679095,157.83841247,0.00012,2]
[334543589,1723182679140,182.9767952,0.00012,2]
[334543590,1723182681112,951.65187642,0.00015,2]
[334543591,1723182686566,10997.58390819,0.00012,2]
[334543592,1723182686732,816.39879119,0.00012,2]
[334543593,1723182687579,8834.48131506,0.00012,2]
[334543594,1723182687963,492.59464676,0.00015,2]
[334543595,1723182691017,215.63838735,0.00012,2]
[334543596,1723182691172,1644.13770192,0.00012,7]
[334543597,1723182693952,727.95598898,0.00012,2]
[334543598,1723182694815,42366.16356883,0.00012,2]
[334543599,1723182695289,156.36757405,0.00012,2]
[334543600,1723182696181,158.48348286,0.00012,2]
[334543601,1723182696347,231.96457973,0.00012,2]
[334543602,1723182699791,42366.16356883,0.00012,2]
[334543603,1723182701174,413.18177562,0.00012,2]
[334543604,1723182704101,2279.60004077,0.00012,3]
[334543605,1723182705325,413.18177562,0.00012,2]
[334543606,1723182707300,273.37336231,9.9e-05,2]
[334543607,1723182707717,1610.68802731,0.00012,2]
[334543608,1723182715080,2140.4177363,0.00012,2]
[334543609,1723182719944,808.0041696,0.00012,2]
[334543613,1723182726404,8834.48131506,0.00012,2]
[334543614,1723182739142,233.872977,0.00012,7]
[334543615,1723182743965,155.73215782,0.00014545,2]
[334543616,1723182744820,42366.16356883,0.00014545,2]
[334543619,1723182749161,414.16414531,0.00014545,2]
[334543621,1723182754081,2277.43047911,0.00014545,3]
[334543622,1723182755686,177.28386842,0.00014545,2]
[334543624,1723182757223,196.53020996,0.00014545,2]
[334543627,1723182759936,510.79471771,0.00014545,2]
[334543628,1723182761349,1298.94128565,0.00014545,2]
[334543629,1723182769062,311.42508432,0.00014545,2]
[334543630,1723182769805,205.1546389,0.00014545,2]
[334543632,1723182771383,209.88574515,0.00014545,2]
[334543633,1723182772401,2677.47530312,0.00014545,2]
[334543634,1723182773085,180.54348558,0.00014545,2]
[334543635,1723182774568,154.79844031,0.00014545,2]
[334543636,1723182776131,183.12142007,0.00014545,2]
[334543637,1723182791184,1644.13770192,0.00014545,7]
[334543645,1723182843763,170.84023,0.00014247,2]
[334543666,1723183221563,-300.0,0.00015583,2]
[334543667,1723183221586,-300.0,0.00015583,2]
[334543668,1723183221610,-18614.0,0.00015584,2]
[334543676,1723183334745,253.54,0.00010959,2]
[334543677,1723183345318,211.28,0.00010959,2]
[334543679,1723183355823,176.07,0.00010959,2]
[334543680,1723183366543,880.38,0.00010959,2]
[334543684,1723183405174,314.09240613,0.00013283,2]
[334543685,1723183416480,154.96685308,0.00013283,2]
[334543686,1723183422174,1642.41637042,0.00015954,7]
[334543710,1723183803435,24900.0,0.00014423,2]
[334543741,1723183832405,-250.0,0.00015012,2]
[334543744,1723183832415,-250.0,0.00015053,2]
[334543747,1723183832425,-250.0,0.00015095,2]
[334543749,1723183832434,-250.0,0.00015136,2]
[334543752,1723183832443,-250.0,0.00015177,2]
[334543755,1723183832456,-250.0,0.00015218,2]
[334543758,1723183832466,-250.0,0.00015259,2]
[334543762,1723183832478,-250.0,0.00015301,2]
[334543765,1723183832489,-250.0,0.00015342,2]
[334543768,1723183832498,-250.0,0.00015383,2]
[334543770,1723183832508,-250.0,0.00015424,2]
[334543773,1723183832517,-250.0,0.00015465,2]
[334543776,1723183832526,-250.0,0.00015506,2]
[334543779,1723183832536,-250.0,0.00015548,2]
[334543781,1723183832546,-300.0,0.00015583,2]
[334543783,1723183832556,-250.0,0.00015589,2]
[334543785,1723183832566,-250.0,0.0001563,2]
[334543787,1723183832575,-250.0,0.00015671,2]
[334543789,1723183832585,-196.58453843,0.00015708,2]